Service area,Service sub division,TVBC Service,Expense type,Detailed expense type,TVBC account code,Date Paid,Transaction Reference, Nett Value ,Supplier Name
Planning & Development,Economic Development,Business Capital Incentive Scheme,Supplies & Services,Grants & Subscriptions,Grants,14/01/2020,289534,-750,Dev'S Veg Kitchen Ltd
Environmental & Regulatory,Waste management,Waste Collection,Transport Related Expenditure,Direct Transport Costs,Repair Materials,30/01/2020,290746,-500,Dennis Eagle Ltd
Planning & Development,Economic Development,Independent retailer grants,Supplies & Services,Grants & Subscriptions,Grants,15/01/2020,289535,500,Grilled Cheese Cafe Ltd
Cultural & Related,Culture & Heritage,The Lights - Arena Programme,Supplies & Services,Miscellaneous Expenses,Booking Of Acts,30/01/2020,290486,500,The Schmoozenbergs
Planning & Development,Economic Development,Independent retailer grants,Supplies & Services,Grants & Subscriptions,Grants,29/01/2020,290982,500,Personal Data - Data Protection Act 1998
Planning & Development,Economic Development,Promotion & Advertising,Supplies & Services,"Equipment, Furniture & Materials",Maintenance Of Tools,30/01/2020,290728,420,H2evidence
Central Services to the Public,Management & Support Services,Pre Commitments,Supplies & Services,"Equipment, Furniture & Materials",Maintenance Equip + Materials,09/01/2020,287553,414.99,Ebuyer (Uk) Limited
Central Services to the Public,Management & Support Services,Operational Infrastructure,Supplies & Services,Communications & Computing,Hardware Maintenance,09/01/2020,287553,8.76,Ebuyer (Uk) Limited
Planning & Development,Development Control,Development Control,Supplies & Services,Services,Training Courses,16/01/2020,289566,424,Royal Town Planning Institute
Central Services to the Public,Management & Support Services,Vehicle Maintenance,Transport Related Expenditure,Direct Transport Costs,Oils,09/01/2020,288438,424.35,Fuchs Lubricants (Uk) Plc
Central Services to the Public,Management & Support Services,Vehicle Maintenance,Transport Related Expenditure,Direct Transport Costs,Oils,09/01/2020,288439,424.35,Fuchs Lubricants (Uk) Plc
Environmental & Regulatory,Waste management,Waste Collection,Employees,Indirect Employee Expenses,Agency Staff - Waged Posts,30/01/2020,290743,427.2,Golden Orb Solutions
Cultural & Related,Open Spaces,Grounds Maintenance,Supplies & Services,"Equipment, Furniture & Materials",Purchase Equip + Materials,30/01/2020,290722,430,A T H Machinery Ltd
Central Services to the Public,Management & Support Services,Vehicle Maintenance,Transport Related Expenditure,Direct Transport Costs,Repair Materials,30/01/2020,290518,434.6,Fuchs Lubricants (Uk) Plc
Central Services to the Public,Management & Support Services,HR Services,Supplies & Services,Services,External Training Consultants,09/01/2020,285617,530,Dh Training
Cultural & Related,Culture & Heritage,Crosfield Hall,Premises related Expenditure,Repairs Alterations & Maintenance of Buildings,Building Maint - Non Estates,16/01/2020,289231,445,Vp-Av Ltd
Environmental & Regulatory,Waste management,Waste Collection,Supplies & Services,"Equipment, Furniture & Materials",Purchase Equip + Materials,30/01/2020,290973,445.6,Frontier Medical Group
Central Services to the Public,Management & Support Services,Romsey Office (Magistrates Ct),Premises related Expenditure,Energy Costs,Gas,23/01/2020,290013,449.03,Total Gas & Power Ltd
Central Services to the Public,Management & Support Services,Estates Support Unit,Employees,Indirect Employee Expenses,Staff Professional Fees,09/01/2020,288911,539,Personal Data - Data Protection Act 1998
Central Services to the Public,Management & Support Services,Estates Support Unit,Employees,Indirect Employee Expenses,Staff Professional Fees,09/01/2020,288938,539,Personal Data - Data Protection Act 1998
Central Services to the Public,Management & Support Services,Building Maintenance - Overheads,Third Party Payments,Other Establishments,Private Contractors,30/01/2020,290727,450,Jcp Engineers
Central Services to the Public,Elections,Register of Electors,Supplies & Services,"Printing, Stationery & General Office Expenses",Postage Costs,16/01/2020,288560,451.66,Royal Mail Group Ltd
Cultural & Related,Open Spaces,Grounds Maintenance,Supplies & Services,"Equipment, Furniture & Materials",Purchase Equip + Materials,09/01/2020,288076,453.56,Natural Stone & Timber
Environmental & Regulatory,Waste management,Waste Collection,Transport Related Expenditure,Direct Transport Costs,Repair Materials,09/01/2020,288400,457.66,Adams Morey Ltd
Central Services to the Public,Local Tax Collection,Council Tax,Employees,Indirect Employee Expenses,Lodging Allowance ,23/01/2020,290492,450,Personal Data - Data Protection Act 1998
Central Services to the Public,Local Tax Collection,Council Tax,Employees,Indirect Employee Expenses,Commuter Expenses,23/01/2020,290492,100.36,Personal Data - Data Protection Act 1998
Cultural & Related,Culture & Heritage,The Lights - The Lights Bar,Supplies & Services,Catering,Non-Contract Catering,30/01/2020,290314,460.82,Carlsberg Uk Ltd
Environmental & Regulatory,Regulatory Services,Health Protection,Supplies & Services,Services,Professional Fees,30/01/2020,290001,461,Osborne Richardson
Cultural & Related,Recreation & Sport,Leisure Facilities,Premises related Expenditure,Energy Costs,Gas,23/01/2020,290026,464.68,Total Gas & Power Ltd
External Trading Accounts,Business Parks,Walworth Enterprise Centre,Supplies & Services,Communications & Computing,Land Line Telephone Charges,30/01/2020,290966,26.85,Virgin Media Payments Ltd
Cultural & Related,Culture & Heritage,Crosfield Hall,Supplies & Services,Communications & Computing,Land Line Telephone Charges,30/01/2020,290966,26,Virgin Media Payments Ltd
Cultural & Related,Culture & Heritage,Rendezvous,Supplies & Services,Communications & Computing,Land Line Telephone Charges,30/01/2020,290966,39,Virgin Media Payments Ltd
Central Services to the Public,Management & Support Services,Networks and Communications,Supplies & Services,Communications & Computing,Communication Links,30/01/2020,290966,26,Virgin Media Payments Ltd
Central Services to the Public,Management & Support Services,Telephones,Supplies & Services,Communications & Computing,Communication Links,30/01/2020,290966,67,Virgin Media Payments Ltd
Cultural & Related,Recreation & Sport,Charlton Sports Centre,Supplies & Services,Communications & Computing,Land Line Telephone Charges,30/01/2020,290966,26,Virgin Media Payments Ltd
Cultural & Related,Recreation & Sport,Hunts Farm Sports Centre,Supplies & Services,Communications & Computing,Land Line Telephone Charges,30/01/2020,290966,13,Virgin Media Payments Ltd
Cultural & Related,Culture & Heritage,The Lights - Management and Admin,Supplies & Services,Communications & Computing,Communication Links,30/01/2020,290966,74.07,Virgin Media Payments Ltd
"Highways, Roads & Transport",Parking Services,Car Parking,Supplies & Services,Communications & Computing,Alarm Lines,30/01/2020,290966,37,Virgin Media Payments Ltd
Central Services to the Public,Management & Support Services,ES Shared Overheads,Supplies & Services,Communications & Computing,Land Line Telephone Charges,30/01/2020,290966,52.49,Virgin Media Payments Ltd
Central Services to the Public,Emergency Planning,Emergency Planning,Supplies & Services,Communications & Computing,Land Line Telephone Charges,30/01/2020,290966,78,Virgin Media Payments Ltd
Central Services to the Public,Management & Support Services,Building Maintenance - Overheads,Third Party Payments,Other Establishments,Private Contractors,23/01/2020,290035,468.67,Spear Electrical Limited
Cultural & Related,Culture & Heritage,The Lights - Management and Admin,Premises related Expenditure,Repairs Alterations & Maintenance of Buildings,Building Maint - Non Estates,23/01/2020,290282,473,Alarms & Electrical (Devizes) Ltd
External Trading Accounts,Property Investments,Investment Properties,Premises related Expenditure,Grounds Maintenance Costs,Grounds Maintenance Contracts,23/01/2020,289971,473.19,Landmarks Sustainability Ltd
External Trading Accounts,Property Investments,Investment Properties,Premises related Expenditure,Grounds Maintenance Costs,Grounds Maintenance Contracts,23/01/2020,290289,473.19,Landmarks Sustainability Ltd
Central Services to the Public,Local Tax Collection,NNDR,Supplies & Services,"Printing, Stationery & General Office Expenses",Postage Costs,23/01/2020,290005,17.74,Royal Mail Group Ltd
Central Services to the Public,Local Tax Collection,Council Tax,Supplies & Services,"Printing, Stationery & General Office Expenses",Postage Costs,23/01/2020,290005,392.43,Royal Mail Group Ltd
Housing Services,Housing Benefits ,Housing Benefit - Rent Allowances Admin,Supplies & Services,"Printing, Stationery & General Office Expenses",Postage Costs,23/01/2020,290005,32.05,Royal Mail Group Ltd
Central Services to the Public,Local Tax Collection,Council Tax Benefit Administration,Supplies & Services,"Printing, Stationery & General Office Expenses",Postage Costs,23/01/2020,290005,32.05,Royal Mail Group Ltd
Central Services to the Public,Management & Support Services,AMP capital IT equipment,Support Services,IT,IT Hardware costs,09/01/2020,286182,475,Idox Software Ltd
Central Services to the Public,Management & Support Services,Corporate Software,Supplies & Services,Communications & Computing,Software Maintenance,09/01/2020,286180,475,Idox Software Ltd
Central Services to the Public,Management & Support Services,Beech Hurst,Premises related Expenditure,Water Services,Water And Sewerage Charges,23/01/2020,290234,572.74,Castle Water Limited
Environmental & Regulatory,Street Cleansing (not chargeable to Highways),Street Cleansing,Supplies & Services,"Equipment, Furniture & Materials",Purchase Equip + Materials,09/01/2020,287060,480,Sweeperhire
Environmental & Regulatory,Regulatory Services,Animal Welfare,Supplies & Services,Services,Professional Fees,16/01/2020,289154,484.95,Biotope Ltd
Central Services to the Public,Management & Support Services,Land and property CAP AMP,Third Party Payments,Private contractors,Main Contractor Costs,16/01/2020,289249,485.21,Corrigenda Ltd
Central Services to the Public,Local Tax Collection,NNDR,Supplies & Services,Miscellaneous Expenses,Data Access Requests,23/01/2020,289969,6.47,Tameside Mbc
Central Services to the Public,Local Tax Collection,Council Tax,Supplies & Services,Miscellaneous Expenses,Data Access Requests,23/01/2020,289969,522.96,Tameside Mbc
Housing Services,Housing Benefits ,Housing Benefit - Rent Allowances Admin,Supplies & Services,Miscellaneous Expenses,Data Access Requests,23/01/2020,289969,10.26,Tameside Mbc
Cultural & Related,Culture & Heritage,Andover Guildhall,Premises related Expenditure,Water Services,Water And Sewerage Charges,23/01/2020,290261,588.42,Castle Water Limited
Planning & Development,Economic Development,Andover Skills Training,Supplies & Services,Services,Training Courses,16/01/2020,289209,592.5,Oaktree Business Management
Environmental & Regulatory,Waste management,Waste Collection,Transport Related Expenditure,Direct Transport Costs,Repair Materials,09/01/2020,288456,500,Dennis Eagle Ltd
Environmental & Regulatory,Waste management,Waste Collection,Transport Related Expenditure,Direct Transport Costs,Repair Materials,23/01/2020,289946,500,Dennis Eagle Ltd
Cultural & Related,Open Spaces,Adopted Woodland - Valley Park,Supplies & Services,"Equipment, Furniture & Materials",Purchase Equip + Materials,09/01/2020,285597,503.1,Gripdeck Uk Llp
Central Services to the Public,Management & Support Services,Legal,Supplies & Services,Miscellaneous Expenses,Medical Fees,16/01/2020,288445,19,University Hospital Soton Nhs Foundation Trst
Central Services to the Public,Management & Support Services,Building Cleaning,Supplies & Services,Miscellaneous Expenses,Medical Fees,16/01/2020,288445,32,University Hospital Soton Nhs Foundation Trst
Housing Services,Homelessness,Housing Options,Supplies & Services,Miscellaneous Expenses,Medical Fees,16/01/2020,288445,38,University Hospital Soton Nhs Foundation Trst
Planning & Development,Development Control,Development Control,Supplies & Services,Miscellaneous Expenses,Medical Fees,16/01/2020,288445,32,University Hospital Soton Nhs Foundation Trst
Planning & Development,Planning Policy,Local Development Framework,Supplies & Services,Miscellaneous Expenses,Medical Fees,16/01/2020,288445,19,University Hospital Soton Nhs Foundation Trst
"Highways, Roads & Transport",Parking Services,Parking Enforcement,Supplies & Services,Miscellaneous Expenses,Medical Fees,16/01/2020,288445,233,University Hospital Soton Nhs Foundation Trst
Environmental & Regulatory,Waste management,Waste Collection,Supplies & Services,Miscellaneous Expenses,Medical Fees,16/01/2020,288445,187,University Hospital Soton Nhs Foundation Trst
Environmental & Regulatory,Waste management,Green Waste Collection,Supplies & Services,Miscellaneous Expenses,Medical Fees,16/01/2020,288445,19,University Hospital Soton Nhs Foundation Trst
Central Services to the Public,Management & Support Services,Management Team,Supplies & Services,"Printing, Stationery & General Office Expenses",Stationery,16/01/2020,289196,517.95,Digital Id Limited
Cultural & Related,Open Spaces,Grounds Maintenance,Supplies & Services,Miscellaneous Expenses,Waste Collection,23/01/2020,288430,522.5,Raymond Brown Waste Solutions
Environmental & Regulatory,Waste management,Waste Collection,Transport Related Expenditure,Direct Transport Costs,Repair Materials,16/01/2020,289157,524.7,Terberg Matec Uk Limited
Cultural & Related,Open Spaces,SANG Shierfield,Third Party Payments,Private contractors,Main Contractor Costs,23/01/2020,288082,525.42,Atf Supplies Nationwide Ltd
Environmental & Regulatory,Regulatory Services,Disabled Facilities Grants,Supplies & Services,Grants and subscriptions,Capital Grants,09/01/2020,288895,638.4,Bjc Design (Southeast) Ltd
Environmental & Regulatory,Waste management,Waste Collection,Transport Related Expenditure,Direct Transport Costs,Tyres,30/01/2020,289225,534.66,Tructyre Ats
Planning & Development,Development Control,Development Control,Employees,Indirect Employee Expenses,Temporary Staff,16/01/2020,289165,537.5,Matchtech Group Uk Ltd
External Trading Accounts,Property Investments,Investment Properties,Premises related Expenditure,Repairs Alterations & Maintenance of Buildings,Salt & Gritting,16/01/2020,289229,540,Gritit Ltd
Central Services to the Public,Management & Support Services,Vehicle Maintenance,Transport Related Expenditure,Direct Transport Costs,Workshop Consumables,09/01/2020,288411,291.38,Md Services (Andover) Ltd
Central Services to the Public,Management & Support Services,Vehicle Maintenance,Transport Related Expenditure,Direct Transport Costs,Repair Materials,09/01/2020,288411,87.28,Md Services (Andover) Ltd
Central Services to the Public,Management & Support Services,Vehicle Maintenance,Supplies & Services,"Equipment, Furniture & Materials",Purchase Tools,09/01/2020,288411,161.86,Md Services (Andover) Ltd
Environmental & Regulatory,Waste management,Waste Collection,Supplies & Services,Communications & Computing,Telephone Tracking System,09/01/2020,288597,541.53,Dashwitness Ltd
Central Services to the Public,Management & Support Services,Finance Service Holding A/c,Supplies & Services,"Printing, Stationery & General Office Expenses",Postage Costs,16/01/2020,288934,541.74,Whistl Uk Ltd
Cultural & Related,Open Spaces,Grounds Maintenance,Supplies & Services,Miscellaneous Expenses,Waste Collection,30/01/2020,289517,542.5,Raymond Brown Waste Solutions
Cultural & Related,Open Spaces,Grounds Maintenance,Supplies & Services,Miscellaneous Expenses,Waste Collection,09/01/2020,285782,545,Raymond Brown Waste Solutions
Environmental & Regulatory,Waste management,Waste Collection,Employees,Indirect Employee Expenses,Agency Staff - Waged Posts,09/01/2020,288751,548.97,24-7 Staffing
Central Services to the Public,Management & Support Services,Finance Service Holding A/c,Supplies & Services,"Printing, Stationery & General Office Expenses",Postage Costs,09/01/2020,288433,549.04,Whistl Uk Ltd
Cultural & Related,Culture & Heritage,Other Public Halls,Premises related Expenditure,Repairs Alterations & Maintenance of Buildings,Planned Maintenance - Non Est,30/01/2020,291139,550,Wessex Response
Environmental & Regulatory,Waste management,Waste Collection,Employees,Indirect Employee Expenses,Agency Staff - Waged Posts,16/01/2020,289246,554.12,24-7 Staffing
Central Services to the Public,Local Tax Collection,NNDR,Supplies & Services,"Equipment, Furniture & Materials",Equipment Lease Rentals,09/01/2020,288930,55.43,Neopost Finance Ltd
Central Services to the Public,Local Tax Collection,NNDR,Supplies & Services,"Equipment, Furniture & Materials",Equipment Lease Rentals,16/01/2020,289550,55.42,Neopost Finance Ltd
Central Services to the Public,Local Tax Collection,Council Tax,Supplies & Services,"Equipment, Furniture & Materials",Equipment Lease Rentals,09/01/2020,288930,221.69,Neopost Finance Ltd
Central Services to the Public,Local Tax Collection,Council Tax,Supplies & Services,"Equipment, Furniture & Materials",Equipment Lease Rentals,16/01/2020,289550,221.69,Neopost Finance Ltd
Housing Services,Housing Benefits ,Housing Benefit - Rent Allowances Admin,Supplies & Services,"Equipment, Furniture & Materials",Equipment Lease Rentals,09/01/2020,288930,138.56,Neopost Finance Ltd
Housing Services,Housing Benefits ,Housing Benefit - Rent Allowances Admin,Supplies & Services,"Equipment, Furniture & Materials",Equipment Lease Rentals,16/01/2020,289550,138.56,Neopost Finance Ltd
Central Services to the Public,Local Tax Collection,Council Tax Benefit Administration,Supplies & Services,"Equipment, Furniture & Materials",Equipment Lease Rentals,09/01/2020,288930,138.55,Neopost Finance Ltd
Central Services to the Public,Local Tax Collection,Council Tax Benefit Administration,Supplies & Services,"Equipment, Furniture & Materials",Equipment Lease Rentals,16/01/2020,289550,138.56,Neopost Finance Ltd
Environmental & Regulatory,Waste management,Waste Collection,Transport Related Expenditure,Direct Transport Costs,Tyres,09/01/2020,287802,554.95,Tructyre Ats
Planning & Development,Community Development,Ward Budgets,Supplies & Services,Grants & Subscriptions,Grants,30/01/2020,291161,666.64,Andover Mens Shed
Cultural & Related,Recreation & Sport,Hunts Farm Sports Centre,Premises related Expenditure,Repairs Alterations & Maintenance of Buildings,Planned Maintenance - Non Est,23/01/2020,290260,559,Culligan (Uk) Ltd
Cultural & Related,Culture & Heritage,The Lights - Management and Admin,Supplies & Services,"Equipment, Furniture & Materials",Purchase Equip + Materials,16/01/2020,289494,565,Alarms & Electrical (Devizes) Ltd
Environmental & Regulatory,Street Cleansing (not chargeable to Highways),Street Cleansing,Transport Related Expenditure,Direct Transport Costs,Repair Materials,09/01/2020,288537,567.95,Adams Morey Ltd
Environmental & Regulatory,Waste management,Waste Collection,Employees,Indirect Employee Expenses,Agency Staff - Waged Posts,09/01/2020,288748,569.6,Golden Orb Solutions
Environmental & Regulatory,Street Cleansing (not chargeable to Highways),Street Cleansing,Transport Related Expenditure,Direct Transport Costs,Repair Materials,23/01/2020,290264,573.06,Scarab Sweepers Ltd
Central Services to the Public,Elections,Parliamentary Elections,Premises related Expenditure,Rents,Premises Hire,16/01/2020,288563,690,Mountbatten School Services Ltd
Cultural & Related,Culture & Heritage,Crosfield Hall,Supplies & Services,Miscellaneous Expenses,Waste Collection,23/01/2020,290059,169.82,Suez Recycling And Recovery Uk Ltd
Central Services to the Public,Management & Support Services,Beech Hurst,Supplies & Services,Miscellaneous Expenses,Waste Collection,23/01/2020,290059,406.92,Suez Recycling And Recovery Uk Ltd
Cultural & Related,Open Spaces,Rooksbury Mill,Premises related Expenditure,Repairs Alterations & Maintenance of Buildings,Estates premises costs - AMP,02/01/2020,288429,577.1,Raymond Brown Waste Solutions
Cultural & Related,Open Spaces,Grounds Maintenance,Transport Related Expenditure,Direct Transport Costs,Repair Materials,23/01/2020,289994,577.73,T H White Ltd
Environmental & Regulatory,Regulatory Services,Pollution,Supplies & Services,"Equipment, Furniture & Materials",Purchase Equip + Materials,16/01/2020,284495,590,Campbell Associates Ltd
Cultural & Related,Recreation & Sport,Outdoor Sports Facilities - General,Premises related Expenditure,Grounds Maintenance Costs,Gm - Additional Works,09/01/2020,283378,590.19,Natural Stone & Timber T/A W H Berry & Son
Cultural & Related,Culture & Heritage,The Lights - Management and Admin,Supplies & Services,"Equipment, Furniture & Materials",Purchase Equip + Materials,02/01/2020,288463,597.3,Premier Vanguard Ltd
Cultural & Related,Open Spaces,Grounds Maintenance,Supplies & Services,Communications & Computing,Mobile Telephone Charges,09/01/2020,287644,203.33,Vodafone Limited
Environmental & Regulatory,Street Cleansing (not chargeable to Highways),Street Cleansing,Supplies & Services,Communications & Computing,Mobile Telephone Charges,09/01/2020,287644,198,Vodafone Limited
Environmental & Regulatory,Waste management,Waste Collection,Supplies & Services,Communications & Computing,Mobile Telephone Charges,09/01/2020,287644,147.33,Vodafone Limited
Central Services to the Public,Management & Support Services,Vehicle Maintenance,Supplies & Services,Communications & Computing,Mobile Telephone Charges,09/01/2020,287644,35,Vodafone Limited
Central Services to the Public,Management & Support Services,ES Shared Overheads,Supplies & Services,Communications & Computing,Mobile Telephone Charges,09/01/2020,287644,21,Vodafone Limited
Environmental & Regulatory,Street Cleansing (not chargeable to Highways),Street Cleansing,Employees,Indirect Employee Expenses,Agency Staff - Waged Posts,23/01/2020,290046,499.5,Active Staff Ltd
Environmental & Regulatory,Waste management,Waste Collection,Employees,Indirect Employee Expenses,Agency Staff - Waged Posts,23/01/2020,290046,101.25,Active Staff Ltd
External Trading Accounts,Business Parks,Walworth Enterprise Centre,Supplies & Services,Miscellaneous Expenses,Waste Collection,16/01/2020,289227,608.16,Basingstoke Skip Hire & Sthrn Waste Mgt Ltd
"Highways, Roads & Transport",Public Transport,Concessionary Travel,Third Party Payments,Transport Operators in Respect of Concessionary Fares,Voluntary Orgs Reimbursement,16/01/2020,289731,737,Thorngate Village Care Group
Environmental & Regulatory,Regulatory Services,Health Protection,Supplies & Services,Services,Professional Fees,09/01/2020,288495,619.5,Vivid Resourcing
Planning & Development,Development Control,Development Control,Employees,Indirect Employee Expenses,Temporary Staff,09/01/2020,288549,623.5,Matchtech Group Uk Ltd
Planning & Development,Development Control,Development Control,Supplies & Services,"Printing, Stationery & General Office Expenses",Stationery,09/01/2020,288468,269.88,Lyreco Uk Ltd
Planning & Development,Development Control,Development Control,Supplies & Services,"Printing, Stationery & General Office Expenses",Print Consumables,09/01/2020,288468,353.73,Lyreco Uk Ltd
External Trading Accounts,Business Parks,Chantry Centre,Supplies & Services,Miscellaneous Expenses,Waste Collection,09/01/2020,288896,624.41,Test Valley Borough Council
Cultural & Related,Recreation & Sport,Leisure Facilities,Premises related Expenditure,Water Services,Water And Sewerage Charges,23/01/2020,290254,749.53,Castle Water Limited
Planning & Development,Economic Development,Business Capital Incentive Scheme,Supplies & Services,Grants & Subscriptions,Grants,14/01/2020,288226,750,Dev'S Veg Kitchen Ltd
Cultural & Related,Tourism,Promotion Of Tourism,Supplies & Services,Miscellaneous Expenses,Advertising,16/01/2020,289539,625,Apl Media Ltd
Planning & Development,Economic Development,Business Capital Incentive Scheme,Supplies & Services,Grants & Subscriptions,Grants,29/01/2020,290983,750,Personal Data - Data Protection Act 1998
Environmental & Regulatory,Regulatory Services,Health Protection,Supplies & Services,Services,Professional Fees,09/01/2020,288547,630,Vivid Resourcing
Environmental & Regulatory,Waste management,Waste Collection,Employees,Indirect Employee Expenses,Agency Staff - Waged Posts,09/01/2020,288750,630.11,24-7 Staffing
External Trading Accounts,Economic Development,Andover Bus Station,Premises related Expenditure,Repairs Alterations & Maintenance of Buildings,Planned Maintenance - Non Est,23/01/2020,290267,292.5,Empire Industrial Doors Ltd
Cultural & Related,Culture & Heritage,Rendezvous,Premises related Expenditure,Repairs Alterations & Maintenance of Buildings,Planned Maintenance - Non Est,23/01/2020,290267,49.17,Empire Industrial Doors Ltd
Cultural & Related,Culture & Heritage,St Ann's Hall,Premises related Expenditure,Repairs Alterations & Maintenance of Buildings,Planned Maintenance - Non Est,23/01/2020,290267,97.5,Empire Industrial Doors Ltd
Central Services to the Public,Management & Support Services,Beech Hurst,Premises related Expenditure,Repairs Alterations & Maintenance of Buildings,Planned Maintenance - Non Est,23/01/2020,290267,97.5,Empire Industrial Doors Ltd
Central Services to the Public,Management & Support Services,Romsey Office (Magistrates Ct),Premises related Expenditure,Repairs Alterations & Maintenance of Buildings,Planned Maintenance - Non Est,23/01/2020,290267,49.17,Empire Industrial Doors Ltd
Cultural & Related,Culture & Heritage,The Lights - Management and Admin,Premises related Expenditure,Repairs Alterations & Maintenance of Buildings,Planned Maintenance - Non Est,23/01/2020,290267,49.17,Empire Industrial Doors Ltd
Cultural & Related,Open Spaces,Grounds Maintenance,Transport Related Expenditure,Contract Hire and Operating Leases,Vehicles-Hired\Leased,16/01/2020,286882,640,Lister Wilder
Environmental & Regulatory,Waste management,Waste Collection,Employees,Indirect Employee Expenses,Agency Staff - Waged Posts,09/01/2020,288755,640.8,Golden Orb Solutions
Cultural & Related,Culture & Heritage,The Lights - Education & Outreach Programme,Supplies & Services,Services,Tutors,29/01/2020,290981,774,Personal Data - Data Protection Act 1998
Environmental & Regulatory,Regulatory Services,Health Protection,Supplies & Services,Services,Professional Fees,30/01/2020,290767,651,Vivid Resourcing
Central Services to the Public,Local Tax Collection,Council Tax Benefit Administration,Supplies & Services,Communications & Computing,Purchase Of Telephones ,30/01/2020,285808,651.43,Go2 Telecom
Environmental & Regulatory,Waste management,Waste Collection,Transport Related Expenditure,Direct Transport Costs,Tyres,16/01/2020,289198,599.45,Tructyre Ats
Central Services to the Public,Management & Support Services,Vehicle Maintenance,Transport Related Expenditure,Direct Transport Costs,Repair Materials,16/01/2020,289198,52.65,Tructyre Ats
Cultural & Related,Recreation & Sport,Picket Twenty,Premises related Expenditure,Repairs Alterations & Maintenance of Buildings,Planned Maintenance - Non Est,23/01/2020,290285,655,Alarms & Electrical (Devizes) Ltd
Central Services to the Public,Management & Support Services,HR Unit,Third Party Payments,Other Local Authorities,Shared Service Contract Costs,30/01/2020,288476,655.69,Mhr International Uk Ltd
Environmental & Regulatory,Regulatory Services,Health Protection,Supplies & Services,Services,Professional Fees,30/01/2020,290000,672,Vivid Resourcing
Environmental & Regulatory,Waste management,Waste Collection,Transport Related Expenditure,Direct Transport Costs,Repair Materials,09/01/2020,288397,672.59,Pitter Commercials Ltd
Environmental & Regulatory,Regulatory Services,Health Protection,Supplies & Services,Services,Professional Fees,02/01/2020,287350,682.5,Vivid Resourcing
Central Services to the Public,Management & Support Services,Finance Service Holding A/c,Supplies & Services,"Printing, Stationery & General Office Expenses",Postage Costs,16/01/2020,288935,694.84,Royal Mail Group Ltd
Central Services to the Public,Management & Support Services,Building Maintenance - Overheads,Supplies & Services,Communications & Computing,Telephone Tracking System,09/01/2020,288509,48,Teletrac Navman (Uk) Ltd
Environmental & Regulatory,Regulatory Services,Animal Welfare,Supplies & Services,Communications & Computing,Telephone Tracking System,09/01/2020,288509,6,Teletrac Navman (Uk) Ltd
Environmental & Regulatory,Regulatory Services,Pest Control,Supplies & Services,Communications & Computing,Telephone Tracking System,09/01/2020,288509,12,Teletrac Navman (Uk) Ltd
Cultural & Related,Open Spaces,Anton Lakes,Supplies & Services,Communications & Computing,Telephone Tracking System,09/01/2020,288509,6,Teletrac Navman (Uk) Ltd
Cultural & Related,Open Spaces,Adopted Woodland - Valley Park,Supplies & Services,Communications & Computing,Telephone Tracking System,09/01/2020,288509,6,Teletrac Navman (Uk) Ltd
"Highways, Roads & Transport",Parking Services,Parking Enforcement,Supplies & Services,Communications & Computing,Telephone Tracking System,09/01/2020,288509,12,Teletrac Navman (Uk) Ltd
Cultural & Related,Open Spaces,Grounds Maintenance,Supplies & Services,Communications & Computing,Telephone Tracking System,09/01/2020,288509,246,Teletrac Navman (Uk) Ltd
Environmental & Regulatory,Street Cleansing (not chargeable to Highways),Street Cleansing,Supplies & Services,Communications & Computing,Telephone Tracking System,09/01/2020,288509,186.7,Teletrac Navman (Uk) Ltd
Environmental & Regulatory,Waste management,Waste Collection,Supplies & Services,Communications & Computing,Telephone Tracking System,09/01/2020,288509,138,Teletrac Navman (Uk) Ltd
Environmental & Regulatory,Waste management,Green Waste Collection,Supplies & Services,Communications & Computing,Telephone Tracking System,09/01/2020,288509,12,Teletrac Navman (Uk) Ltd
Central Services to the Public,Management & Support Services,Workshop Vehicles,Supplies & Services,Communications & Computing,Telephone Tracking System,09/01/2020,288509,18,Teletrac Navman (Uk) Ltd
Planning & Development,Planning Policy,Planning Policy,Supplies & Services,Miscellaneous Expenses,Medical Fees,30/01/2020,290482,700,Genius Within Cic
Central Services to the Public,Management & Support Services,Building Maintenance - Overheads,Third Party Payments,Other Establishments,Private Contractors,23/01/2020,289983,704,Tsg Building Services Plc
Central Services to the Public,Management & Support Services,Telephones,Supplies & Services,Communications & Computing,Land Line Telephone Charges,23/01/2020,290010,711.15,Virgin Media Payments Ltd
Cultural & Related,Recreation & Sport,Outdoor Sports Facilities - General,Supplies & Services,"Equipment, Furniture & Materials",Purchase Equip + Materials,23/01/2020,289542,529.01,Signway Supplies (Datchet Ltd)
"Highways, Roads & Transport",Parking Services,Parking Enforcement,Premises related Expenditure,Repairs Alterations & Maintenance of Buildings,Car Parks - Signs + Lines,23/01/2020,289542,114.49,Signway Supplies (Datchet Ltd)
"Highways, Roads & Transport",Parking Services,Car Parking,Premises related Expenditure,Repairs Alterations & Maintenance of Buildings,Car Park General Repairs,23/01/2020,289542,77.42,Signway Supplies (Datchet Ltd)
Central Services to the Public,Management & Support Services,Building Maintenance - Overheads,Third Party Payments,Other Establishments,Private Contractors,23/01/2020,290037,725,Purbeck Civil Engineering Limited
Cultural & Related,Open Spaces,SANG Shierfield,Third Party Payments,Private contractors,Main Contractor Costs,02/01/2020,288415,727.5,Natural Stone & Timber T/A W H Berry & Son
Central Services to the Public,Management & Support Services,Pre Commitments,Supplies & Services,"Equipment, Furniture & Materials",Maintenance Equip + Materials,16/01/2020,285003,741.67,Quadrant Security Group Ltd
Central Services to the Public,Management & Support Services,Pre Commitments,Supplies & Services,"Equipment, Furniture & Materials",Maintenance Equip + Materials,16/01/2020,287521,741.67,Quadrant Security Group Ltd
Environmental & Regulatory,Regulatory Services,Housing Standards,Supplies & Services,Grants & Subscriptions,Subscriptions,09/01/2020,288084,744.32,Ferret Information Systems Ltd
Central Services to the Public,Management & Support Services,Finance Service Holding A/c,Supplies & Services,"Printing, Stationery & General Office Expenses",Postage Costs,30/01/2020,290316,748.62,Whistl Uk Ltd
Central Services,Corporate & Democratic Core,Corporate & Democratic,Supplies & Services,Services,Professional Advice,16/01/2020,286723,750,Dc Commercial Solicitors
Planning & Development,Development Control,Development Control,Supplies & Services,Miscellaneous Expenses,Health And Safety,16/01/2020,288558,757.9,Posturite Limited
Environmental & Regulatory,Waste management,Waste Collection,Employees,Indirect Employee Expenses,Agency Staff - Waged Posts,30/01/2020,290495,773.74,24-7 Staffing
Cultural & Related,Recreation & Sport,Sports Development Schemes,Supplies & Services,"Equipment, Furniture & Materials",Purchase Equip + Materials,09/01/2020,285923,777.89,Natural Stone & Timber T/A W H Berry & Son
Environmental & Regulatory,Waste management,Waste Collection,Employees,Indirect Employee Expenses,Agency Staff - Waged Posts,16/01/2020,289245,779.57,24-7 Staffing
Environmental & Regulatory,Waste management,Waste Collection,Employees,Indirect Employee Expenses,Agency Staff - Waged Posts,23/01/2020,290306,783.2,Golden Orb Solutions
Central Services to the Public,Management & Support Services,Building Maintenance - Overheads,Third Party Payments,Other Establishments,Private Contractors,23/01/2020,290288,792,Sonic Scaffolding 2000 Ltd
Environmental & Regulatory,Waste management,Waste Collection,Employees,Indirect Employee Expenses,Agency Staff - Waged Posts,09/01/2020,288756,792.1,Golden Orb Solutions
Environmental & Regulatory,Waste management,Waste Collection,Employees,Indirect Employee Expenses,Agency Staff - Waged Posts,23/01/2020,290307,792.1,Golden Orb Solutions
Environmental & Regulatory,Regulatory Services,Pest Control,Supplies & Services,Miscellaneous Expenses,Medical Fees,16/01/2020,288440,233,University Hospital Soton Nhs Foundation Trst
Housing Services,Homelessness,Housing Options,Supplies & Services,Miscellaneous Expenses,Medical Fees,16/01/2020,288440,19,University Hospital Soton Nhs Foundation Trst
Planning & Development,Development Control,Development Control,Supplies & Services,Miscellaneous Expenses,Medical Fees,16/01/2020,288440,233,University Hospital Soton Nhs Foundation Trst
Cultural & Related,Open Spaces,Grounds Maintenance,Supplies & Services,Miscellaneous Expenses,Medical Fees,16/01/2020,288440,233,University Hospital Soton Nhs Foundation Trst
Environmental & Regulatory,Waste management,Waste Collection,Supplies & Services,Miscellaneous Expenses,Medical Fees,16/01/2020,288440,233,University Hospital Soton Nhs Foundation Trst
Planning & Development,Economic Development,Promotion & Advertising,Supplies & Services,Grants & Subscriptions,Subscriptions,23/01/2020,290504,800,Hampshire Chamber Of Commerce
Central Services to the Public,Management & Support Services,Building Maintenance - Overheads,Third Party Payments,Other Establishments,Private Contractors,23/01/2020,290279,813.35,Tsg Building Services Plc
Planning & Development,Development Control,Development Control,Supplies & Services,"Equipment, Furniture & Materials",Maintenance Of Tools,09/01/2020,287303,822,The Microfilm Shop
Environmental & Regulatory,Waste management,Waste Collection,Employees,Indirect Employee Expenses,Agency Staff - Waged Posts,16/01/2020,289243,833,24-7 Staffing
Planning & Development,Community Development,Ward Budgets,Supplies & Services,Grants & Subscriptions,Grants,15/01/2020,283565,1000,Knights Enham Pcc
Central Services to the Public,Management & Support Services,Portway Depot,Premises related Expenditure,Energy Costs,Gas,23/01/2020,290022,837.91,Total Gas & Power Ltd
Planning & Development,Building Control,Building Control (Trading),Employees,Indirect Employee Expenses,Temporary Staff,23/01/2020,289999,840,Matchtech Group Uk Ltd
Environmental & Regulatory,Waste management,Green Waste Collection,Transport Related Expenditure,Direct Transport Costs,Repair Materials,30/01/2020,290730,844.62,Dennis Eagle Ltd
Central Services to the Public,Elections,Parliamentary Elections,Supplies & Services,"Equipment, Furniture & Materials",Purchase Equip + Materials,16/01/2020,284648,1026,Shaw & Sons Ltd
Cultural & Related,Open Spaces,Urban Parks And Open Spaces - General,Supplies & Services,"Equipment, Furniture & Materials",Purchase Equip + Materials,09/01/2020,288922,861.5,David Ogilvie Engineering Ltd
Cultural & Related,Open Spaces,Urban Parks And Open Spaces - General,Supplies & Services,"Equipment, Furniture & Materials",Purchase Equip + Materials,09/01/2020,286380,864,Streetmaster (South Wales) Ltd
Environmental & Regulatory,Waste management,Green Waste Collection,Transport Related Expenditure,Direct Transport Costs,External Garages,23/01/2020,289992,891.87,Dennis Eagle Ltd
Environmental & Regulatory,Waste management,Waste Collection,Employees,Indirect Employee Expenses,Agency Staff - Waged Posts,30/01/2020,290958,914.8,24-7 Staffing
Central Services to the Public,Elections,Register of Electors,Supplies & Services,"Printing, Stationery & General Office Expenses",Postage Costs,16/01/2020,288565,916.3,Financial Data Management Plc
"Highways, Roads & Transport",Parking Services,Car Parking,Premises related Expenditure,Repairs Alterations & Maintenance of Buildings,Car Park General Repairs,30/01/2020,290972,930.41,Externiture Ltd
Environmental & Regulatory,Regulatory Services,Public Conveniences,Premises related Expenditure,Water Services,Water And Sewerage Charges,23/01/2020,290253,1117.38,Castle Water Limited
Cultural & Related,Open Spaces,Grounds Maintenance,Supplies & Services,"Equipment, Furniture & Materials",Purchase Equip + Materials,09/01/2020,285343,931.68,Natural Stone & Timber T/A W H Berry & Son
Cultural & Related,Open Spaces,Grounds Maintenance,Supplies & Services,"Equipment, Furniture & Materials",Purchase Equip + Materials,09/01/2020,284233,936,Rigby Taylor Ltd
Cultural & Related,Open Spaces,Grounds Maintenance,Employees,Indirect Employee Expenses,Advertising Of Vacancies,09/01/2020,287514,949.05,Newsquest Media Group Ltd
Cultural & Related,Culture & Heritage,Granger Farm - Pavilion,Third Party Payments,Private contractors,Main Contractor Costs,16/01/2020,288753,950,Real Estate Strategies Ltd
Central Services to the Public,Management & Support Services,Beech Hurst,Third Party Payments,Other Establishments,Contract Catering,30/01/2020,289515,956.55,Edwards And Ward Ltd
Environmental & Regulatory,Waste management,Waste Collection,Transport Related Expenditure,Direct Transport Costs,Repair Materials,16/01/2020,289218,691.38,Dennis Eagle Ltd
Central Services to the Public,Management & Support Services,Vehicle Maintenance,Transport Related Expenditure,Direct Transport Costs,Repair Materials,16/01/2020,289218,282.05,Dennis Eagle Ltd
Central Services to the Public,Management & Support Services,Beech Hurst,Premises related Expenditure,Repairs Alterations & Maintenance of Buildings,Building Maint - Non Estates,16/01/2020,289173,990.88,Btu Installation & Maintenance Ltd
Planning & Development,Development Control,Development Control,Supplies & Services,Communications & Computing,Hardware Maintenance,09/01/2020,283966,995,Temple Knight Plc
"Highways, Roads & Transport",Public Transport,Concessionary Travel,Third Party Payments,Transport Operators in Respect of Concessionary Fares,Voluntary Orgs Reimbursement,09/01/2020,288942,1199.5,Romsey Good Neighbours
Cultural & Related,Culture & Heritage,The Lights - Theatre Programme,Supplies & Services,Miscellaneous Expenses,Booking Of Acts,16/01/2020,289491,1000,Sweeney Entertainments
"Highways, Roads & Transport",Public Transport,Concessionary Travel,Third Party Payments,Transport Operators in Respect of Concessionary Fares,Voluntary Orgs Reimbursement,09/01/2020,288941,1204,Romsey Good Neighbours
Central Services to the Public,Elections,Parliamentary Elections,Supplies & Services,"Printing, Stationery & General Office Expenses",Postage Costs,30/01/2020,290741,1210.3,Royal Mail Group Ltd
Cultural & Related,Recreation & Sport,Outdoor Sports Facilities - General,Premises related Expenditure,Grounds Maintenance Costs,Gm - Additional Works,09/01/2020,286273,932,Streetmaster (South Wales) Ltd
Cultural & Related,Recreation & Sport,Picket Piece,Premises related Expenditure,Grounds Maintenance Costs,Gm - Additional Works,09/01/2020,286273,90,Streetmaster (South Wales) Ltd
Cultural & Related,Recreation & Sport,Community Asset Fund,Supplies & Services,Grants and subscriptions,Capital Grants,30/01/2020,291186,1250,Broughton Learning
Cultural & Related,Open Spaces,Grounds Maintenance,Supplies & Services,Miscellaneous Expenses,Waste Collection,09/01/2020,284519,1052.5,Raymond Brown Waste Solutions
Environmental & Regulatory,Regulatory Services,Disabled Facilities Grants,Supplies & Services,Grants and subscriptions,Capital Grants,16/01/2020,289733,1263.61,Spc Bathrooms Ltd
Central Services to the Public,Management & Support Services,Finance Service Holding A/c,Supplies & Services,"Printing, Stationery & General Office Expenses",Postage Costs,23/01/2020,289270,1054.79,Whistl Uk Ltd
Environmental & Regulatory,Waste management,Waste Collection,Supplies & Services,"Equipment, Furniture & Materials",Purchase Equip + Materials,09/01/2020,286460,1061.6,Dura-Id Solutions Ltd
Planning & Development,Development Control,Development Control,Third Party Payments,Commuted Sum,s106 Developer contributions,30/01/2020,291188,1300,Personal Data - Data Protection Act 1998
Environmental & Regulatory,Waste management,Waste Collection,Transport Related Expenditure,Direct Transport Costs,Repair Materials,09/01/2020,288508,837.92,Dennis Eagle Ltd
Central Services to the Public,Management & Support Services,Vehicle Maintenance,Transport Related Expenditure,Direct Transport Costs,Repair Materials,09/01/2020,288508,261.62,Dennis Eagle Ltd
Central Services to the Public,Elections,Register of Electors,Supplies & Services,"Printing, Stationery & General Office Expenses",Postage Costs,16/01/2020,288564,1102.67,Financial Data Management Plc
Central Services,Corporate & Democratic Core,Andover Town Centre Rejuvenat,Supplies & Services,Miscellaneous Expenses,Advertising,16/01/2020,289230,1110.38,City Dressing
Central Services to the Public,Local Tax Collection,Council Tax,Supplies & Services,Services,Professional Fees,09/01/2020,288554,353.48,Ross & Roberts
Central Services to the Public,Management & Support Services,HR Unit,Third Party Payments,Other Local Authorities,Shared Service Contract Costs,16/01/2020,289241,1140,Mhr International Uk Ltd
Central Services to the Public,Elections,Parliamentary Elections,Premises related Expenditure,Rents,Premises Hire,16/01/2020,287548,1370.4,Wernick Event Hire Ltd
Central Services to the Public,Elections,Parliamentary Elections,Premises related Expenditure,Rents,Premises Hire,16/01/2020,287550,1370.4,Wernick Event Hire Ltd
Cultural & Related,Culture & Heritage,The Lights - Theatre Programme,Supplies & Services,Miscellaneous Expenses,Booking Of Acts,16/01/2020,289161,1167.5,Triangle Productions Ltd
Central Services to the Public,Management & Support Services,HR Unit,Third Party Payments,Other Local Authorities,Shared Service Contract Costs,30/01/2020,289540,1188,Mhr International Uk Ltd
Central Services to the Public,Local Tax Collection,Council Tax,Supplies & Services,Grants & Subscriptions,Subscriptions,23/01/2020,289960,600,Irrv Hq
Housing Services,Housing Benefits ,Housing Benefit - Rent Allowances Admin,Supplies & Services,Grants & Subscriptions,Subscriptions,23/01/2020,289960,600,Irrv Hq
Central Services to the Public,Management & Support Services,Building Maintenance - Overheads,Third Party Payments,Other Establishments,Private Contractors,23/01/2020,290287,1228,Andover Glass Works Ltd
Central Services to the Public,Elections,Parliamentary Elections,Premises related Expenditure,Rents,Premises Hire,16/01/2020,287545,1514.4,Wernick Event Hire Ltd
Central Services to the Public,Elections,Parliamentary Elections,Premises related Expenditure,Rents,Premises Hire,16/01/2020,287546,1514.4,Wernick Event Hire Ltd
Central Services to the Public,Elections,Parliamentary Elections,Premises related Expenditure,Rents,Premises Hire,16/01/2020,287552,1514.4,Wernick Event Hire Ltd
Environmental & Regulatory,Waste management,Waste Collection,Employees,Indirect Employee Expenses,Agency Staff - Waged Posts,30/01/2020,290961,1273.39,24-7 Staffing
Environmental & Regulatory,Waste management,Waste Collection,Employees,Indirect Employee Expenses,Agency Staff - Waged Posts,30/01/2020,290959,1297.98,24-7 Staffing
Planning & Development,Planning Policy,Planning Policy,Supplies & Services,Grants & Subscriptions,Grants,23/01/2020,284512,1571.96,Hampshire County Council
Planning & Development,Planning Policy,Planning Policy,Supplies & Services,Grants & Subscriptions,Grants,23/01/2020,284513,1571.96,Hampshire County Council
Planning & Development,Planning Policy,Planning Policy,Supplies & Services,Grants & Subscriptions,Grants,23/01/2020,284514,1571.96,Hampshire County Council
Planning & Development,Planning Policy,Planning Policy,Supplies & Services,Grants & Subscriptions,Grants,23/01/2020,284515,1571.96,Hampshire County Council
Planning & Development,Planning Policy,Planning Policy,Supplies & Services,Grants & Subscriptions,Grants,23/01/2020,289959,1571.96,Hampshire County Council
Central Services to the Public,Management & Support Services,Building Maintenance - Overheads,Transport Related Expenditure,Direct Transport Costs,Repair Materials,23/01/2020,289984,22.2,Md Services (Andover) Ltd
Environmental & Regulatory,Regulatory Services,Animal Welfare,Transport Related Expenditure,Direct Transport Costs,Repair Materials,23/01/2020,289984,8.88,Md Services (Andover) Ltd
Environmental & Regulatory,Regulatory Services,Pest Control,Transport Related Expenditure,Direct Transport Costs,Repair Materials,23/01/2020,289984,8.88,Md Services (Andover) Ltd
"Highways, Roads & Transport",Parking Services,Parking Enforcement,Transport Related Expenditure,Direct Transport Costs,Repair Materials,23/01/2020,289984,8.88,Md Services (Andover) Ltd
Cultural & Related,Open Spaces,Grounds Maintenance,Transport Related Expenditure,Direct Transport Costs,Repair Materials,23/01/2020,289984,182.04,Md Services (Andover) Ltd
Environmental & Regulatory,Street Cleansing (not chargeable to Highways),Street Cleansing,Transport Related Expenditure,Direct Transport Costs,Repair Materials,23/01/2020,289984,111,Md Services (Andover) Ltd
Environmental & Regulatory,Waste management,Waste Collection,Transport Related Expenditure,Direct Transport Costs,Repair Materials,23/01/2020,289984,75.48,Md Services (Andover) Ltd
Environmental & Regulatory,Waste management,Green Waste Collection,Transport Related Expenditure,Direct Transport Costs,Repair Materials,23/01/2020,289984,13.32,Md Services (Andover) Ltd
Central Services to the Public,Management & Support Services,Vehicle Maintenance,Transport Related Expenditure,Direct Transport Costs,Workshop Consumables,23/01/2020,289984,368.3,Md Services (Andover) Ltd
Central Services to the Public,Management & Support Services,Vehicle Maintenance,Transport Related Expenditure,Direct Transport Costs,Repair Materials,23/01/2020,289984,415.34,Md Services (Andover) Ltd
Central Services to the Public,Management & Support Services,Vehicle Maintenance,Supplies & Services,"Equipment, Furniture & Materials",Purchase Tools,23/01/2020,289984,89.2,Md Services (Andover) Ltd
Central Services to the Public,Management & Support Services,Workshop Vehicles,Transport Related Expenditure,Direct Transport Costs,Repair Materials,23/01/2020,289984,13.32,Md Services (Andover) Ltd
Central Services to the Public,Elections,Register of Electors,Supplies & Services,"Printing, Stationery & General Office Expenses",Postage Costs,09/01/2020,288086,1350.49,Financial Data Management Plc
Environmental & Regulatory,Waste management,Green Waste Collection,Transport Related Expenditure,Direct Transport Costs,Repair Materials,09/01/2020,288527,1352.44,Dennis Eagle Ltd
Central Services to the Public,Elections,Parish By-elections,Supplies & Services,"Printing, Stationery & General Office Expenses",Postage Costs,16/01/2020,288566,1627.24,Financial Data Management Plc
Cultural & Related,Culture & Heritage,The Lights - The Lights Bar,Supplies & Services,Catering,Non-Contract Catering,16/01/2020,289489,1419.1,Carlsberg Uk Ltd
External Trading Accounts,Business Parks,Walworth Enterprise Centre,Premises related Expenditure,Repairs Alterations & Maintenance of Buildings,Planned Maintenance - Non Est,23/01/2020,290058,47.79,Healthy Buildings International
External Trading Accounts,Business Parks,Corporate Properties,Premises related Expenditure,Repairs Alterations & Maintenance of Buildings,Planned Maintenance - Non Est,23/01/2020,290058,143.33,Healthy Buildings International
Cultural & Related,Culture & Heritage,Andover Guildhall,Premises related Expenditure,Repairs Alterations & Maintenance of Buildings,Planned Maintenance - Non Est,23/01/2020,290058,47.78,Healthy Buildings International
Cultural & Related,Culture & Heritage,Crosfield Hall,Premises related Expenditure,Repairs Alterations & Maintenance of Buildings,Planned Maintenance - Non Est,23/01/2020,290058,47.79,Healthy Buildings International
Cultural & Related,Culture & Heritage,Rendezvous,Premises related Expenditure,Repairs Alterations & Maintenance of Buildings,Planned Maintenance - Non Est,23/01/2020,290058,47.79,Healthy Buildings International
Cultural & Related,Culture & Heritage,Longmeadow Hall,Premises related Expenditure,Repairs Alterations & Maintenance of Buildings,Planned Maintenance - Non Est,23/01/2020,290058,47.79,Healthy Buildings International
Cultural & Related,Culture & Heritage,King Arthur's Hall,Premises related Expenditure,Repairs Alterations & Maintenance of Buildings,Planned Maintenance - Non Est,23/01/2020,290058,47.79,Healthy Buildings International
Cultural & Related,Culture & Heritage,St Ann's Hall,Premises related Expenditure,Repairs Alterations & Maintenance of Buildings,Planned Maintenance - Non Est,23/01/2020,290058,47.79,Healthy Buildings International
Cultural & Related,Culture & Heritage,Other Public Halls,Premises related Expenditure,Repairs Alterations & Maintenance of Buildings,Planned Maintenance - Non Est,23/01/2020,290058,47.79,Healthy Buildings International
Central Services to the Public,Management & Support Services,Beech Hurst,Premises related Expenditure,Repairs Alterations & Maintenance of Buildings,Planned Maintenance - Non Est,23/01/2020,290058,47.78,Healthy Buildings International
Central Services to the Public,Management & Support Services,Portway Depot,Premises related Expenditure,Repairs Alterations & Maintenance of Buildings,Planned Maintenance - Non Est,23/01/2020,290058,47.79,Healthy Buildings International
Central Services to the Public,Management & Support Services,Bourne House,Premises related Expenditure,Repairs Alterations & Maintenance of Buildings,Planned Maintenance - Non Est,23/01/2020,290058,47.78,Healthy Buildings International
Central Services to the Public,Management & Support Services,Romsey Office (Magistrates Ct),Premises related Expenditure,Repairs Alterations & Maintenance of Buildings,Planned Maintenance - Non Est,23/01/2020,290058,47.79,Healthy Buildings International
Environmental & Regulatory,Regulatory Services,Public Conveniences,Premises related Expenditure,Repairs Alterations & Maintenance of Buildings,Planned Maintenance - Non Est,23/01/2020,290058,95.57,Healthy Buildings International
Cultural & Related,Recreation & Sport,Charlton Sports Centre,Premises related Expenditure,Repairs Alterations & Maintenance of Buildings,Planned Maintenance - Non Est,23/01/2020,290058,47.79,Healthy Buildings International
Cultural & Related,Recreation & Sport,London Road Sports Centre,Premises related Expenditure,Repairs Alterations & Maintenance of Buildings,Planned Maintenance - Non Est,23/01/2020,290058,47.76,Healthy Buildings International
Cultural & Related,Recreation & Sport,Romsey Sports Centre,Premises related Expenditure,Repairs Alterations & Maintenance of Buildings,Planned Maintenance - Non Est,23/01/2020,290058,47.79,Healthy Buildings International
Cultural & Related,Recreation & Sport,Hunts Farm Sports Centre,Premises related Expenditure,Repairs Alterations & Maintenance of Buildings,Planned Maintenance - Non Est,23/01/2020,290058,47.78,Healthy Buildings International
Cultural & Related,Recreation & Sport,Saxon Fields Sports Ground,Premises related Expenditure,Repairs Alterations & Maintenance of Buildings,Planned Maintenance - Non Est,23/01/2020,290058,47.79,Healthy Buildings International
Cultural & Related,Recreation & Sport,Picket Twenty,Premises related Expenditure,Repairs Alterations & Maintenance of Buildings,Planned Maintenance - Non Est,23/01/2020,290058,47.79,Healthy Buildings International
Cultural & Related,Recreation & Sport,Augusta Park,Premises related Expenditure,Repairs Alterations & Maintenance of Buildings,Planned Maintenance - Non Est,23/01/2020,290058,47.79,Healthy Buildings International
Environmental & Regulatory,"Cemetery, Cremation and Mortuary Services",Charlton Cemetery,Premises related Expenditure,Repairs Alterations & Maintenance of Buildings,Planned Maintenance - Non Est,23/01/2020,290058,47.78,Healthy Buildings International
Environmental & Regulatory,"Cemetery, Cremation and Mortuary Services",Woodley Cemetery,Premises related Expenditure,Repairs Alterations & Maintenance of Buildings,Planned Maintenance - Non Est,23/01/2020,290058,47.78,Healthy Buildings International
Cultural & Related,Open Spaces,War Memorial Park,Premises related Expenditure,Repairs Alterations & Maintenance of Buildings,Planned Maintenance - Non Est,23/01/2020,290058,47.79,Healthy Buildings International
Cultural & Related,Culture & Heritage,The Lights - Management and Admin,Premises related Expenditure,Repairs Alterations & Maintenance of Buildings,Planned Maintenance - Non Est,23/01/2020,290058,47.79,Healthy Buildings International
"Highways, Roads & Transport",Parking Services,Car Parking,Premises related Expenditure,Repairs Alterations & Maintenance of Buildings,Planned Maintenance - Non Est,23/01/2020,290058,95.57,Healthy Buildings International
Cultural & Related,Open Spaces,Grounds Maintenance,Employees,Indirect Employee Expenses,Agency Staff - Waged Posts,09/01/2020,288795,571.28,Active Staff Ltd
Environmental & Regulatory,Waste management,Waste Collection,Employees,Indirect Employee Expenses,Agency Staff - Waged Posts,09/01/2020,288795,607.8,Active Staff Ltd
Environmental & Regulatory,Waste management,Green Waste Collection,Employees,Indirect Employee Expenses,Agency Staff - Waged Posts,09/01/2020,288795,263.25,Active Staff Ltd
Planning & Development,Development Control,Development Control,Employees,Indirect Employee Expenses,Temporary Staff,09/01/2020,288548,1462,Matchtech Group Uk Ltd
Planning & Development,Development Control,Development Control,Employees,Indirect Employee Expenses,Temporary Staff,23/01/2020,289998,1462,Matchtech Group Uk Ltd
Planning & Development,Development Control,Development Control,Employees,Indirect Employee Expenses,Temporary Staff,30/01/2020,290740,1462,Matchtech Group Uk Ltd
Environmental & Regulatory,Waste management,Waste Collection,Employees,Indirect Employee Expenses,Agency Staff - Waged Posts,30/01/2020,290494,1463.51,24-7 Staffing
Central Services to the Public,Management & Support Services,HR Unit,Third Party Payments,Other Local Authorities,Shared Service Contract Costs,16/01/2020,287621,1488,Mhr International Uk Ltd
Environmental & Regulatory,Street Cleansing (not chargeable to Highways),Street Cleansing,Supplies & Services,Services,Training Courses,16/01/2020,289204,1515,By-Pass Driver Training
Environmental & Regulatory,Waste management,Waste Collection,Transport Related Expenditure,Direct Transport Costs,Repair Materials,09/01/2020,288455,1540.44,Dennis Eagle Ltd
Environmental & Regulatory,Waste management,Green Waste Collection,Transport Related Expenditure,Direct Transport Costs,Repair Materials,16/01/2020,288494,147.75,Terberg Matec Uk Limited
Central Services to the Public,Management & Support Services,Vehicle Maintenance,Transport Related Expenditure,Direct Transport Costs,Repair Materials,16/01/2020,288494,1411.46,Terberg Matec Uk Limited
Central Services to the Public,Management & Support Services,Workshop Diesel,Supplies & Services,"Equipment, Furniture & Materials",Maintenance Equip + Materials,09/01/2020,288499,1559.47,Triscan Systems Ltd
Cultural & Related,Open Spaces,Grounds Maintenance,Supplies & Services,"Equipment, Furniture & Materials",Purchase Equip + Materials,09/01/2020,284234,1560,Rigby Taylor Ltd
Environmental & Regulatory,Waste management,Waste Collection,Transport Related Expenditure,Direct Transport Costs,Repair Materials,23/01/2020,289945,1562.51,Dennis Eagle Ltd
Central Services to the Public,Management & Support Services,Land and property CAP AMP,Third Party Payments,Private contractors,Main Contractor Costs,16/01/2020,289743,1566.57,Corrigenda Ltd
External Trading Accounts,Business Parks,Chantry Centre,Supplies & Services,Services,Professional Fees,16/01/2020,288073,1612.5,Smith Price Llp
Planning & Development,Development Control,Development Control,Supplies & Services,Miscellaneous Expenses,Planning Appeal Costs,23/01/2020,290532,1612.5,Turley Associates
Central Services to the Public,Elections,Parish By-elections,Supplies & Services,"Printing, Stationery & General Office Expenses",External Printing,30/01/2020,290237,2066.11,Financial Data Management Plc
"Highways, Roads & Transport",Public Transport,Concessionary Travel,Third Party Payments,Transport Operators in Respect of Concessionary Fares,Voluntary Orgs Reimbursement,16/01/2020,288511,2131,Andover Neighbourcare
Environmental & Regulatory,Waste management,Waste Collection,Employees,Indirect Employee Expenses,Agency Staff - Waged Posts,16/01/2020,289244,1797.46,24-7 Staffing
Environmental & Regulatory,Street Cleansing (not chargeable to Highways),Street Cleansing,Transport Related Expenditure,Direct Transport Costs,External Garages,09/01/2020,288095,398.6,Tennant Uk Cleaning Solutions Ltd
Environmental & Regulatory,Street Cleansing (not chargeable to Highways),Street Cleansing,Transport Related Expenditure,Direct Transport Costs,Repair Materials,09/01/2020,288095,1430.62,Tennant Uk Cleaning Solutions Ltd
Central Services to the Public,Management & Support Services,Beech Hurst,Third Party Payments,Other Establishments,Contract Catering,02/01/2020,287814,1917.8,Edwards And Ward Ltd
Housing Services,Homelessness,Housing Options,Supplies & Services,Miscellaneous Expenses,Bed & Breakfast,30/01/2020,290332,2310,The Star Inn
Environmental & Regulatory,Street Cleansing (not chargeable to Highways),Street Cleansing,Employees,Indirect Employee Expenses,Agency Staff - Waged Posts,30/01/2020,290960,372.29,24-7 Staffing
Environmental & Regulatory,Waste management,Waste Collection,Employees,Indirect Employee Expenses,Agency Staff - Waged Posts,30/01/2020,290960,1573.73,24-7 Staffing
Cultural & Related,Culture & Heritage,The Lights - Theatre Programme,Supplies & Services,Miscellaneous Expenses,Booking Of Acts,30/01/2020,290752,1952,Talon Music Ltd
Central Services to the Public,Management & Support Services,Building Maintenance - Overheads,Third Party Payments,Other Establishments,Private Contractors,23/01/2020,289975,1975,Gibson & Co Ceilings
Central Services to the Public,Elections,Parliamentary Elections,Premises related Expenditure,Rents,Premises Hire,09/01/2020,288458,2412.5,Hampshire County Council
Environmental & Regulatory,Regulatory Services,Animal Welfare,Supplies & Services,Miscellaneous Expenses,Kennel fees,09/01/2020,288519,2013.76,Three Oak Boarding Kennels
External Trading Accounts,Property Investments,Investment Properties,Premises related Expenditure,Repairs Alterations & Maintenance of Buildings,Salt & Gritting,16/01/2020,289228,2029.76,Gritit Ltd
Environmental & Regulatory,Street Cleansing (not chargeable to Highways),Street Cleansing,Supplies & Services,"Equipment, Furniture & Materials",Purchase Equip + Materials,09/01/2020,284236,2065,Jrb Enterpise Ltd
Environmental & Regulatory,Waste management,Waste Collection,Transport Related Expenditure,Direct Transport Costs,Repair Materials,16/01/2020,289200,1925.56,Dennis Eagle Ltd
Central Services to the Public,Management & Support Services,Vehicle Maintenance,Transport Related Expenditure,Direct Transport Costs,Repair Materials,16/01/2020,289200,141.02,Dennis Eagle Ltd
Central Services to the Public,Management & Support Services,Estates Support Unit,Supplies & Services,Communications & Computing,Software Maintenance,23/01/2020,289490,2067,Integrated Solutions Ltd
Central Services to the Public,Management & Support Services,Corporate Software,Supplies & Services,Communications & Computing,Software Maintenance,09/01/2020,286179,2137.5,Idox Software Ltd
Cultural & Related,Culture & Heritage,The Lights - Theatre Programme,Supplies & Services,Miscellaneous Expenses,Booking Of Acts,09/01/2020,288444,2145.7,Off The Kerb Productions
Central Services to the Public,Management & Support Services,HR Unit,Third Party Payments,Other Local Authorities,Shared Service Contract Costs,09/01/2020,287071,2168.58,Mhr International Uk Ltd
Central Services to the Public,Management & Support Services,HR Unit,Third Party Payments,Other Local Authorities,Shared Service Contract Costs,30/01/2020,289962,2168.58,Mhr International Uk Ltd
Planning & Development,Building Control,Building Control (Trading),Employees,Indirect Employee Expenses,Temporary Staff,23/01/2020,289997,2170,Matchtech Group Uk Ltd
Cultural & Related,Culture & Heritage,The Lights - Theatre Programme,Supplies & Services,Miscellaneous Expenses,Booking Of Acts,23/01/2020,289948,2213.66,Neil Sands Productions
Central Services to the Public,Management & Support Services,Beech Hurst,Third Party Payments,Other Establishments,Contract Catering,02/01/2020,287812,2273.89,Edwards And Ward Ltd
Central Services to the Public,Management & Support Services,Beech Hurst,Third Party Payments,Other Establishments,Contract Catering,30/01/2020,289514,2273.89,Edwards And Ward Ltd
Cultural & Related,Open Spaces,Anton Lakes,Premises related Expenditure,Grounds Maintenance Costs,Gm - Additional Works,09/01/2020,285195,850,Streetmaster (South Wales) Ltd
Cultural & Related,Recreation & Sport,Picket Piece,Premises related Expenditure,Grounds Maintenance Costs,Gm - Additional Works,09/01/2020,285195,1439,Streetmaster (South Wales) Ltd
Housing Services,"Housing strategy, advice and enabling",Housing Development,Employees,Indirect Employee Expenses,Advertising Of Vacancies,09/01/2020,287346,2290,Ocean Media Group Ltd
Planning & Development,Building Control,Building Control (Trading),Employees,Indirect Employee Expenses,Temporary Staff,30/01/2020,290739,2310,Matchtech Group Uk Ltd
Central Services to the Public,Management & Support Services,SAN and Servers,Supplies & Services,Communications & Computing,Computer Software,09/01/2020,284494,2316,Phoenix Software Ltd
Cultural & Related,Culture & Heritage,Crosfield Hall,Supplies & Services,"Equipment, Furniture & Materials",Purchase Equip + Materials,23/01/2020,290054,2350,Roundstone Catering Equipment
Central Services to the Public,Management & Support Services,HR Unit,Third Party Payments,Other Local Authorities,Shared Service Contract Costs,30/01/2020,288575,2376,Mhr International Uk Ltd
Central Services to the Public,Management & Support Services,Building Maintenance - Overheads,Third Party Payments,Other Establishments,Private Contractors,23/01/2020,290041,2400.97,Spear Electrical Limited
Central Services to the Public,Management & Support Services,Workshop Diesel,Transport Related Expenditure,Direct Transport Costs,Diesel,09/01/2020,288530,2421.21,Wp Group Limited
Cultural & Related,Culture & Heritage,The Lights - Theatre Programme,Supplies & Services,Miscellaneous Expenses,Booking Of Acts,16/01/2020,289552,2472,Avalon Management Group Ltd
Central Services to the Public,Management & Support Services,Beech Hurst,Premises related Expenditure,Energy Costs,Gas,23/01/2020,290012,2487.29,Total Gas & Power Ltd
Cultural & Related,Open Spaces,Urban Parks And Open Spaces - General,Premises related Expenditure,Grounds Maintenance Costs,Gm - Additional Works,09/01/2020,286464,2497,Fernden Construction (Winchester) Ltd
Central Services to the Public,Elections,Parliamentary Elections,Premises related Expenditure,Rents,Premises Hire,16/01/2020,287519,3015.6,Wernick Event Hire Ltd
Cultural & Related,Culture & Heritage,The Lights - Theatre Programme,Supplies & Services,Miscellaneous Expenses,Booking Of Acts,09/01/2020,288413,2515,Sweeney Entertainments
Cultural & Related,Open Spaces,Grounds Maintenance,Premises related Expenditure,Repairs Alterations & Maintenance of Buildings,Estates premises costs - AMP,16/01/2020,288742,2562.13,Hrg Tree Services Ltd
External Trading Accounts,Business Parks,Chantry Centre,Supplies & Services,Services,Professional Fees,16/01/2020,289549,2625,Aon Uk Ltd
Central Services to the Public,Management & Support Services,Beech Hurst,Supplies & Services,Services,Professional Fees,16/01/2020,289548,2625,Aon Uk Ltd
Central Services to the Public,Elections,Parliamentary Elections,Supplies & Services,"Printing, Stationery & General Office Expenses",Postage Costs,16/01/2020,288574,3157.39,Royal Mail Group Ltd
Central Services to the Public,Management & Support Services,HR Unit,Third Party Payments,Other Local Authorities,Shared Service Contract Costs,30/01/2020,288556,2724,Mhr International Uk Ltd
Central Services to the Public,Management & Support Services,Pre Commitments,Supplies & Services,Communications & Computing,Communication Links,16/01/2020,289199,2773.6,Vodafone Cable & Wireless Uk
Cultural & Related,Culture & Heritage,The Lights - Theatre Programme,Supplies & Services,Miscellaneous Expenses,Booking Of Acts,23/01/2020,289956,2777.92,Oddsocks Communications Ltd
Cultural & Related,Open Spaces,Grounds Maintenance,Premises related Expenditure,Repairs Alterations & Maintenance of Buildings,Estates premises costs - AMP,16/01/2020,288740,2800,Hrg Tree Services Ltd
Central Services to the Public,Management & Support Services,Estates Service Holding Account,Premises related Expenditure,Repairs Alterations & Maintenance of Buildings,General Repairs,09/01/2020,288420,2850,Spacemaster Partions Manufacturing Ltd
Central Services to the Public,Management & Support Services,Land and property CAP AMP,Third Party Payments,Private contractors,Main Contractor Costs,16/01/2020,289742,2989.21,Corrigenda Ltd
Central Services to the Public,Management & Support Services,Service Desk,Employees,Indirect Employee Expenses,Temporary Staff,16/01/2020,289155,3000,Vector Resourcing Ltd
Central Services to the Public,Corporate & Democratic Core,Corporate & Democratic,Supplies & Services,Miscellaneous Expenses,Advertising,09/01/2020,288587,3045,Hampshire Printing Services
Environmental & Regulatory,Waste management,Waste Collection,Supplies & Services,"Printing, Stationery & General Office Expenses",External Printing,16/01/2020,286456,3071,Cammegh Davies Fleming
Planning & Development,Planning Policy,Planning Policy,Supplies & Services,Services,Training Courses,09/01/2020,284485,3750,University Of Westminster
Central Services to the Public,Management & Support Services,Workshop Diesel,Transport Related Expenditure,Direct Transport Costs,Diesel,30/01/2020,290539,3170.1,Wp Group Limited
Cultural & Related,Open Spaces,Abbotswood Basin,Premises related Expenditure,Grounds Maintenance Costs,Snagging Works,23/01/2020,289963,3213.7,Kingcombe Aquacare Ltd
Central Services to the Public,Management & Support Services,ES Shared Overheads,Supplies & Services,Communications & Computing,Communication Links,30/01/2020,291140,3252,Virgin Media Payments Ltd
Environmental & Regulatory,Regulatory Services,Pollution,Employees,Indirect Employee Expenses,Temporary Staff,09/01/2020,288501,3286.65,Contractor Umbrella Ltd
Environmental & Regulatory,Regulatory Services,Disabled Facilities Grants,Supplies & Services,Grants and subscriptions,Capital Grants,16/01/2020,289734,4016.23,Nhp (Romsey) Ltd
Central Services to the Public,Elections,Parliamentary Elections,Supplies & Services,"Printing, Stationery & General Office Expenses",Postage Costs,16/01/2020,288932,4028.15,Royal Mail Group Ltd
Environmental & Regulatory,Regulatory Services,Disabled Facilities Grants,Supplies & Services,Grants and subscriptions,Capital Grants,09/01/2020,288943,4108.09,Spc Bathrooms Ltd
Cultural & Related,Culture & Heritage,The Lights - Theatre Programme,Supplies & Services,Miscellaneous Expenses,Booking Of Acts,09/01/2020,288532,3476.66,Honalee Media
Cultural & Related,Culture & Heritage,The Lights - Theatre Programme,Supplies & Services,Miscellaneous Expenses,Booking Of Acts,16/01/2020,289492,3512.66,Sweeney Entertainments
Housing Services,Homelessness,Housing Options,Supplies & Services,Grants & Subscriptions,Grants,23/01/2020,290491,4223.83,Aster Lettings
Housing Services,"Housing strategy, advice and enabling",Housing Development,Supplies & Services,Services,Project Consultancy - Policy,16/01/2020,289512,3825,Beetham Development Consultancy Ltd
Central Services to the Public,Management & Support Services,Service Desk,Employees,Indirect Employee Expenses,Temporary Staff,09/01/2020,288794,4000,Vector Resourcing Ltd
Planning & Development,Economic Development,Andover Town Centre Management,Supplies & Services,Services,Project Consultancy - Policy,23/01/2020,290536,4000,Rjs Associates Ltd
Central Services to the Public,Management & Support Services,Finance Service Holding A/c,Supplies & Services,"Printing, Stationery & General Office Expenses",Postage Costs,09/01/2020,288562,5008.17,Pitney Bowes Limited
Environmental & Regulatory,Regulatory Services,Disabled Facilities Grants,Supplies & Services,Grants and subscriptions,Capital Grants,23/01/2020,290487,5066.45,Lifestyle Solutions
Planning & Development,Development Control,Development Control,Third Party Payments,Commuted Sum,s106 Developer contributions,09/01/2020,288902,5293.16,Lockerley Parish Council
Cultural & Related,Recreation & Sport,Picket Piece,Premises related Expenditure,Grounds Maintenance Costs,Snagging Works,30/01/2020,290967,4430,Ams Contracting Ltd
Central Services to the Public,Management & Support Services,HR Unit,Third Party Payments,Other Local Authorities,Shared Service Contract Costs,30/01/2020,290962,4482,Mhr International Uk Ltd
Central Services to the Public,Management & Support Services,Customer Services,Supplies & Services,Miscellaneous Expenses,Security Services,16/01/2020,289164,313.95,Jade Security Services Ltd
"Highways, Roads & Transport",Parking Services,Car Parking,Supplies & Services,Services,Professional Fees,16/01/2020,289164,4179.55,Jade Security Services Ltd
Central Services to the Public,Management & Support Services,Workshop Diesel,Transport Related Expenditure,Direct Transport Costs,Diesel,09/01/2020,288498,4579.97,Wp Group Limited
Environmental & Regulatory,Regulatory Services,Disabled Facilities Grants,Supplies & Services,Grants and subscriptions,Capital Grants,16/01/2020,289732,5617.61,Northfield Property Solutions Limited
Central Services to the Public,Management & Support Services,Workshop Diesel,Transport Related Expenditure,Direct Transport Costs,Diesel,16/01/2020,289217,4815,Wp Group Limited
Central Services to the Public,Management & Support Services,Customer Services,Supplies & Services,Miscellaneous Expenses,Security Services,09/01/2020,288459,343.85,Jade Security Services Ltd
"Highways, Roads & Transport",Parking Services,Car Parking,Supplies & Services,Services,Professional Fees,09/01/2020,288459,4504.16,Jade Security Services Ltd
Planning & Development,Development Control,Development Control,Supplies & Services,Services,Project Consultancy - Policy,16/01/2020,285778,4901,Hampshire County Council
Cultural & Related,Recreation & Sport,Community Asset Fund,Supplies & Services,Grants and subscriptions,Capital Grants,16/01/2020,289730,5972.45,Stockbridge Town Hall Cio
Cultural & Related,Open Spaces,Grounds Maintenance,Supplies & Services,Communications & Computing,Software Maintenance,09/01/2020,287622,4980,R A Information Systems Ltd
Cultural & Related,Recreation & Sport,Outdoor Sports Facilities - General,Premises related Expenditure,Grounds Maintenance Costs,Gm - Additional Works,09/01/2020,288555,4999,Evergreen Rabbit Control
Central Services to the Public,Elections,Parliamentary Elections,Supplies & Services,"Printing, Stationery & General Office Expenses",Postage Costs,16/01/2020,288568,6006.58,Financial Data Management Plc
External Trading Accounts,Business Parks,Corporate Properties,Premises related Expenditure,Cleaning and domestic supplies,Contract Cleaning - Non Estates,23/01/2020,290061,207.01,Hi-Spec Facilities Services Plc
External Trading Accounts,Business Parks,Corporate Properties,Premises related Expenditure,Cleaning and domestic supplies,Contract Cleaning - Non Estates,23/01/2020,290062,207.01,Hi-Spec Facilities Services Plc
Cultural & Related,Culture & Heritage,Rendezvous,Premises related Expenditure,Cleaning and domestic supplies,Contract Cleaning - Non Estates,23/01/2020,290061,414.02,Hi-Spec Facilities Services Plc
Cultural & Related,Culture & Heritage,Rendezvous,Premises related Expenditure,Cleaning and domestic supplies,Contract Cleaning - Non Estates,23/01/2020,290062,414.02,Hi-Spec Facilities Services Plc
Central Services to the Public,Management & Support Services,Beech Hurst,Premises related Expenditure,Cleaning and domestic supplies,Contract Cleaning - Non Estates,23/01/2020,290061,172.51,Hi-Spec Facilities Services Plc
Central Services to the Public,Management & Support Services,Beech Hurst,Premises related Expenditure,Cleaning and domestic supplies,Contract Cleaning - Non Estates,23/01/2020,290062,172.51,Hi-Spec Facilities Services Plc
Environmental & Regulatory,Regulatory Services,Public Conveniences,Premises related Expenditure,Cleaning and domestic supplies,Contract Cleaning - Non Estates,23/01/2020,290061,1932.11,Hi-Spec Facilities Services Plc
Environmental & Regulatory,Regulatory Services,Public Conveniences,Premises related Expenditure,Cleaning and domestic supplies,Contract Cleaning - Non Estates,23/01/2020,290062,1932.11,Hi-Spec Facilities Services Plc
Cultural & Related,Recreation & Sport,Romsey Sports Centre,Premises related Expenditure,Cleaning and domestic supplies,Contract Cleaning - Non Estates,23/01/2020,290061,724.54,Hi-Spec Facilities Services Plc
Cultural & Related,Recreation & Sport,Romsey Sports Centre,Premises related Expenditure,Cleaning and domestic supplies,Contract Cleaning - Non Estates,23/01/2020,290062,724.54,Hi-Spec Facilities Services Plc
Cultural & Related,Recreation & Sport,Picket Twenty,Premises related Expenditure,Cleaning and domestic supplies,Contract Cleaning - Non Estates,23/01/2020,290061,414.02,Hi-Spec Facilities Services Plc
Cultural & Related,Recreation & Sport,Picket Twenty,Premises related Expenditure,Cleaning and domestic supplies,Contract Cleaning - Non Estates,23/01/2020,290062,414.02,Hi-Spec Facilities Services Plc
Cultural & Related,Recreation & Sport,Augusta Park,Premises related Expenditure,Cleaning and domestic supplies,Contract Cleaning - Non Estates,23/01/2020,290061,414.02,Hi-Spec Facilities Services Plc
Cultural & Related,Recreation & Sport,Augusta Park,Premises related Expenditure,Cleaning and domestic supplies,Contract Cleaning - Non Estates,23/01/2020,290062,414.02,Hi-Spec Facilities Services Plc
Environmental & Regulatory,"Cemetery, Cremation and Mortuary Services",Charlton Cemetery,Premises related Expenditure,Cleaning and domestic supplies,Contract Cleaning - Non Estates,23/01/2020,290061,34.5,Hi-Spec Facilities Services Plc
Environmental & Regulatory,"Cemetery, Cremation and Mortuary Services",Charlton Cemetery,Premises related Expenditure,Cleaning and domestic supplies,Contract Cleaning - Non Estates,23/01/2020,290062,34.5,Hi-Spec Facilities Services Plc
Cultural & Related,Open Spaces,War Memorial Park,Premises related Expenditure,Cleaning and domestic supplies,Contract Cleaning - Non Estates,23/01/2020,290061,724.54,Hi-Spec Facilities Services Plc
Cultural & Related,Open Spaces,War Memorial Park,Premises related Expenditure,Cleaning and domestic supplies,Contract Cleaning - Non Estates,23/01/2020,290062,724.54,Hi-Spec Facilities Services Plc
"Highways, Roads & Transport",Parking Services,Car Parking,Premises related Expenditure,Cleaning and domestic supplies,Contract Cleaning - Non Estates,23/01/2020,290061,103.5,Hi-Spec Facilities Services Plc
"Highways, Roads & Transport",Parking Services,Car Parking,Premises related Expenditure,Cleaning and domestic supplies,Contract Cleaning - Non Estates,23/01/2020,290062,103.5,Hi-Spec Facilities Services Plc
Central Services to the Public,Management & Support Services,Building Maintenance - Overheads,Third Party Payments,Other Establishments,Private Contractors,30/01/2020,290535,5310,Purbeck Civil Engineering Limited
Central Services to the Public,Local Land Charges,Land Charges,Supplies & Services,Miscellaneous Expenses,Land Charges Fees,30/01/2020,290772,5616,Hampshire County Council
Environmental & Regulatory,Regulatory Services,Disabled Facilities Grants,Supplies & Services,Grants and subscriptions,Capital Grants,30/01/2020,291166,6815.99,J D Codd Ltd
Planning & Development,Development Control,Development Control,Supplies & Services,Services,Project Consultancy - Policy,23/01/2020,289957,6000,Vail Williams Llp
Central Services to the Public,Management & Support Services,Workshop Diesel,Transport Related Expenditure,Direct Transport Costs,Diesel,09/01/2020,288531,6351.99,Wp Group Limited
Cultural & Related,Open Spaces,Grounds Maintenance,Premises related Expenditure,Repairs Alterations & Maintenance of Buildings,Estates premises costs - AMP,16/01/2020,289488,6450,Hrg Tree Services Ltd
External Trading Accounts,Business Parks,Walworth Enterprise Centre,Premises related Expenditure,Repairs Alterations & Maintenance of Buildings,Building Maint - Non Estates,16/01/2020,289252,6494.92,Tsg Building Services Plc
Central Services to the Public,Management & Support Services,AMP capital IT equipment,Support Services,IT,IT Hardware costs,09/01/2020,286181,7125,Idox Software Ltd
"Highways, Roads & Transport",Parking Services,Car Parking,Transport Related Costs,Management Fee,Car Park charges,16/01/2020,288595,7383.19,Cobalt Telephone Technologies
Planning & Development,Development Control,Development Control,Third Party Payments,Commuted Sum,s106 Developer contributions,30/01/2020,291181,9515.09,Hampshire County Council
Cultural & Related,Open Spaces,Foxcotte - Boundary,Third Party Payments,Private contractors,Main Contractor Costs,30/01/2020,291137,7934,Personal Data - Data Protection Act 1998
Cultural & Related,Open Spaces,Grounds Maintenance,Premises related Expenditure,Repairs Alterations & Maintenance of Buildings,Estates premises costs - AMP,16/01/2020,288739,8500,Hrg Tree Services Ltd
Planning & Development,Development Control,Development Control,Supplies & Services,Miscellaneous Expenses,Planning Appeal Costs,02/01/2020,288423,8731.5,Turley Associates
Cultural & Related,Recreation & Sport,Community Asset Fund,Supplies & Services,Grants and subscriptions,Capital Grants,23/01/2020,290531,10977,Unity
Central Services to the Public,Management & Support Services,Corporate Software,Supplies & Services,Communications & Computing,Software Maintenance,02/01/2020,288426,9234.5,Fordway Solutions Ltd
Cultural & Related,Open Spaces,Adopted Woodland - Valley Park,Premises related Expenditure,Grounds Maintenance Costs,Non Contract Tree Works,16/01/2020,288744,8210,Hrg Tree Services Ltd
Cultural & Related,Open Spaces,Adopted Woodland - Valley Park,Premises related Expenditure,Grounds Maintenance Costs,Gm - Additional Works,16/01/2020,288744,1090,Hrg Tree Services Ltd
Environmental & Regulatory,Community Development,Community Engagement,Supplies & Services,Miscellaneous Expenses,Promotions / Special Events,23/01/2020,289210,11300.44,Romsey Community School
Cultural & Related,Open Spaces,Land Protection,Third Party Payments,Private contractors,Main Contractor Costs,23/01/2020,290047,9544.36,Rocon Contractors Ltd
Cultural & Related,Open Spaces,Grounds Maintenance,Premises related Expenditure,Repairs Alterations & Maintenance of Buildings,Estates premises costs - AMP,16/01/2020,288745,9991.07,Hrg Tree Services Ltd
Central Services to the Public,Elections,Parliamentary Elections,Supplies & Services,"Printing, Stationery & General Office Expenses",Postage Costs,16/01/2020,288569,12141.25,Financial Data Management Plc
Central Services to the Public,Local Tax Collection,BID Collection,Supplies & Services,Miscellaneous Expenses,Other Miscellaneous Costs,16/01/2020,288790,10361.5,Andover Town Centre Bid Ltd
Central Services to the Public,Management & Support Services,Workshop Diesel,Transport Related Expenditure,Direct Transport Costs,Diesel,23/01/2020,289943,10567,Wp Group Limited
External Trading Accounts,Property Investments,Purchase of Freehold Interests,Third Party Payments,Private contractors,Main Contractor Costs,16/01/2020,289551,10603.49,Kier Property Developments Ltd.
External Trading Accounts,Property Investments,Purchase of Freehold Interests,Supplies & Services,Services,Property Acquisition,22/01/2020,290292,5100,Hm Revenue And Customs Only
External Trading Accounts,Property Investments,Purchase of Freehold Interests,Supplies & Services,Services,Property Acquisition,22/01/2020,290292,4830,Hm Revenue And Customs Only
External Trading Accounts,Property Investments,Purchase of Freehold Interests,Supplies & Services,Services,Property Acquisition,22/01/2020,290292,4987,Hm Revenue And Customs Only
Planning & Development,Planning Policy,Planning Policy,Supplies & Services,Grants & Subscriptions,Grants,23/01/2020,290520,15237,Unity
Planning & Development,Planning Policy,Local Development Framework,Supplies & Services,Services,Project Consultancy - Policy,16/01/2020,289493,13300,Portsmouth City Council
Planning & Development,Development Control,Development Control,Supplies & Services,Miscellaneous Expenses,Planning Appeal Costs,30/01/2020,290525,15242.1,Cornerstone Barristers
Central Services to the Public,Management & Support Services,HR Unit,Third Party Payments,Other Local Authorities,Shared Service Contract Costs,23/01/2020,289955,18592.28,Hampshire County Council
Cultural & Related,Recreation & Sport,Community Asset Fund,Supplies & Services,Grants and subscriptions,Capital Grants,30/01/2020,291180,25000,North Baddesley Infant School
Central Services to the Public,Elections,Parliamentary Elections,Supplies & Services,"Printing, Stationery & General Office Expenses",Postage Costs,16/01/2020,288567,31727.34,Financial Data Management Plc
Cultural & Related,Recreation & Sport,Knightwood Skate Park,Third Party Payments,Private contractors,Main Contractor Costs,30/01/2020,291000,27550,Gravity Engineering Ltd
Cultural & Related,Open Spaces,Urban Parks And Open Spaces - General,Premises related Expenditure,Grounds Maintenance Costs,Gm - Additional Works,09/01/2020,286465,36500,Fernden Construction (Winchester) Ltd
Environmental & Regulatory,Regulatory Services,Public Conveniences,Premises related Expenditure,Cleaning and domestic supplies,Contract Cleaning - Non Estates,23/01/2020,290291,13822.9,Test Valley Borough Council
"Highways, Roads & Transport",Parking Services,Car Parking,Supplies & Services,Services,Professional Fees,23/01/2020,290291,35544.6,Test Valley Borough Council
Central Services to the Public,Management & Support Services,Corporate Software,Supplies & Services,Communications & Computing,Software Maintenance,02/01/2020,288431,78217.91,Phoenix Software Ltd
